[Event "African Open (w)"]
[Site "followchess.com"]
[Date "2022.09.25"]
[Round "7"]
[White "Abigail Karyah"]
[Black "Vilhete, Vania Fausto Da T."]
[Result "0-1"]
[ECO "B95"]
[WhiteElo "1435"]
[BlackElo "1718"]
[PlyCount "66"]
[EventDate "2022.??.??"]
[TimeControl "5400+30"]

1. e4 {[%emt 0:00:03]} c5 {[%emt 0:00:04]} 2. Nf3 {[%emt 0:00:11]} d6 {[%emt 0:
00:09]} 3. d4 {[%emt 0:00:14]} cxd4 {[%emt 0:00:07]} 4. Nxd4 {[%emt 0:00:12]}
Nf6 {[%emt 0:00:10]} 5. Nc3 {[%emt 0:00:22]} a6 {[%emt 0:00:08]} 6. Bg5 {
[%emt 0:00:25]} e6 {[%emt 0:00:14]} 7. Be2 {[%emt 0:00:28]} Nbd7 {[%emt 0:00:
46]} 8. O-O {[%emt 0:02:25]} b5 {[%emt 0:03:27]} 9. Bf3 {[%emt 0:05:04]} Bb7 {
[%emt 0:00:41]} 10. Re1 {[%emt 0:00:26]} Be7 {[%emt 0:00:36]} 11. e5 {[%emt 0:
01:11]} Bxf3 {[%emt 0:02:15]} 12. Nxf3 {[%emt 0:00:34]} Nxe5 13. Nxe5 {[%emt 0:
00:09]} dxe5 {[%emt 0:02:49]} 14. Qf3 {[%emt 0:10:23]} O-O {[%emt 0:02:24]} 15.
Qb7 {[%emt 0:14:47]} Re8 {[%emt 0:09:02]} 16. Rxe5 {[%emt 0:06:17]} Ng4 {
[%emt 0:07:43]} 17. Re4 {[%emt 0:02:14]} f5 {[%emt 0:08:52]} 18. Rxg4 {[%emt 0:
12:31]} fxg4 {[%emt 0:00:36]} 19. Be3 {[%emt 0:01:10]} Bf6 {[%emt 0:03:06]} 20.
Nd1 {[%emt 0:02:09]} Qc8 {[%emt 0:00:46]} 21. Qe4 {[%emt 0:01:11]} Qc4 {
[%emt 0:01:59]} 22. Qxc4 {[%emt 0:00:37]} bxc4 {[%emt 0:00:06]} 23. c3 {
[%emt 0:00:14]} Rab8 {[%emt 0:00:42]} 24. Rb1 {[%emt 0:00:27]} Red8 {[%emt 0:
00:55]} 25. Kf1 {[%emt 0:01:40]} Rd3 {[%emt 0:02:02]} 26. Bf4 {[%emt 0:03:48]}
Rb7 {[%emt 0:03:28]} 27. Ne3 {[%emt 0:01:02]} Rxc3 {[%emt 0:05:45]} 28. Nxg4 {
[%emt 0:01:53]} Rc2 {[%emt 0:02:05]} 29. Nxf6+ {[%emt 0:03:21]} gxf6 {[%emt 0:
00:12]} 30. Bc1 {[%emt 0:03:23]} c3 {[%emt 0:00:17]} 31. Ke1 {[%emt 0:01:44]}
Rbxb2 {[%emt 0:03:54]} 32. Bxb2 {[%emt 0:01:05]} cxb2 {[%emt 0:00:10]} 33. Kd1
{[%emt 0:01:28]} Rxf2 {[%emt 0:00:12]} 0-1

[Event "African Open (w)"]
[Site "followchess.com"]
[Date "2022.09.26"]
[Round "8"]
[White "Nkhoma, Desiderata"]
[Black "Oyenga, Justine Anassika"]
[Result "1-0"]
[ECO "B41"]
[WhiteElo "1446"]
[BlackElo "1192"]
[PlyCount "95"]
[EventDate "2022.??.??"]
[TimeControl "5400+30"]

1. e4 {[%emt 0:00:03]} c5 {[%emt 0:00:12]} 2. Nf3 {[%emt 0:00:06]} e6 {[%emt 0:
00:10]} 3. d4 {[%emt 0:00:18]} cxd4 {[%emt 0:00:07]} 4. Nxd4 {[%emt 0:00:10]}
a6 {[%emt 0:00:07]} 5. e5 {[%emt 0:00:41]} Qc7 {[%emt 0:00:21]} 6. Bf4 {
[%emt 0:00:47]} Nc6 {[%emt 0:00:26]} 7. Nxc6 {[%emt 0:00:29]} Qxc6 {[%emt 0:00:
25]} 8. Nc3 {[%emt 0:00:19]} Bb4 {[%emt 0:00:54]} 9. Qd3 {[%emt 0:02:09]} Ne7 {
[%emt 0:01:02]} 10. a3 {[%emt 0:01:44]} Bc5 {[%emt 0:00:36]} 11. Be3 {[%emt 0:
00:37]} Bxe3 {[%emt 0:00:32]} 12. Qxe3 {[%emt 0:00:18]} Nf5 {[%emt 0:00:39]}
13. Qg5 {[%emt 0:02:59]} h6 {[%emt 0:01:41]} 14. Qg4 {[%emt 0:00:37]} b5 {
[%emt 0:00:32]} 15. Bd3 {[%emt 0:00:34]} Ne7 {[%emt 0:03:32]} 16. Be4 {[%emt 0:
06:07]} Nd5 {[%emt 0:01:04]} 17. Qxg7 {[%emt 0:02:23]} Rf8 {[%emt 0:00:50]} 18.
Qxh6 {[%emt 0:01:21]} Bb7 {[%emt 0:01:54]} 19. Bxd5 {[%emt 0:01:06]} exd5 {
[%emt 0:00:18]} 20. Qxc6 {[%emt 0:00:24]} Bxc6 {[%emt 0:00:07]} 21. O-O-O {
[%emt 0:01:55]} d4 {[%emt 0:01:53]} 22. Rxd4 {[%emt 0:00:50]} Bxg2 {[%emt 0:00:
10]} 23. Rg1 {[%emt 0:00:18]} Bh3 {[%emt 0:00:07]} 24. Nd5 {[%emt 0:01:46]} Rc8
{[%emt 0:01:55]} 25. Nf6+ {[%emt 0:00:26]} Ke7 {[%emt 0:00:57]} 26. Nd5+ {
[%emt 0:00:51]} Ke8 {[%emt 0:00:35]} 27. Nb6 {[%emt 0:01:17]} Rc7 {[%emt 0:01:
02]} 28. f4 {[%emt 0:00:40]} Bf5 {[%emt 0:00:17]} 29. Rg2 {[%emt 0:00:32]} f6 {
[%emt 0:01:30]} 30. exf6 {[%emt 0:00:28]} Rc6 {[%emt 0:00:34]} 31. Nd5 {
[%emt 0:01:25]} Kd8 {[%emt 0:01:47]} 32. c3 {[%emt 0:01:00]} Kc8 {[%emt 0:00:
30]} 33. Ne7+ {[%emt 0:00:09]} Kc7 {[%emt 0:00:09]} 34. Nxc6 {[%emt 0:01:03]}
Kxc6 {[%emt 0:00:06]} 35. Rg5 {[%emt 0:02:33]} Rxf6 {[%emt 0:00:20]} 36. Rxf5 {
[%emt 0:00:16]} Rxf5 {[%emt 0:00:14]} 37. h4 {[%emt 0:00:08]} d5 {[%emt 0:00:
56]} 38. b4 {[%emt 0:00:45]} Kd6 {[%emt 0:00:25]} 39. Kd2 {[%emt 0:00:14]} Ke6
{[%emt 0:00:20]} 40. Ke3 {[%emt 0:00:16]} Kf6 41. Rd1 {[%emt 0:00:47]} Kg6 42.
Rg1+ Kh5 {[%emt 0:02:50]} 43. Rg5+ {[%emt 0:00:58]} Rxg5 {[%emt 0:00:46]} 44.
hxg5 {[%emt 0:00:16]} Kg6 {[%emt 0:00:08]} 45. Kd4 {[%emt 0:00:15]} Kf5 {
[%emt 0:00:59]} 46. Kxd5 {[%emt 0:00:12]} Kxf4 {[%emt 0:00:06]} 47. g6 {
[%emt 0:00:17]} Kf5 {[%emt 0:00:09]} 48. g7 {[%emt 0:00:15] -error} 1-0

[Event "African Open (w)"]
[Site "followchess.com"]
[Date "2022.09.26"]
[Round "8"]
[White "Yavo Tchetche, Marie"]
[Black "Oyelese, Mayomi"]
[Result "0-1"]
[ECO "A17"]
[WhiteElo "1363"]
[BlackElo "1677"]
[PlyCount "97"]
[EventDate "2022.??.??"]
[TimeControl "5400+30"]

1. c4 {[%emt 0:00:35]} Nf6 2. Nc3 {[%emt 0:00:19]} e6 {[%emt 0:00:08]} 3. g3 {
[%emt 0:01:23]} d5 {[%emt 0:00:27]} 4. cxd5 {[%emt 0:00:41]} Nxd5 {[%emt 0:00:
32]} 5. Bg2 {[%emt 0:00:24]} Nxc3 {[%emt 0:00:33]} 6. bxc3 {[%emt 0:00:28]} c5
{[%emt 0:00:20]} 7. Nf3 {[%emt 0:04:39]} Qc7 {[%emt 0:00:30]} 8. d4 {[%emt 0:
01:10]} Nc6 {[%emt 0:08:33]} 9. O-O {[%emt 0:00:18]} b6 {[%emt 0:02:56]} 10.
Ne5 {[%emt 0:08:41]} Bd7 {[%emt 0:01:32]} 11. Nxd7 {[%emt 0:00:22]} Qxd7 {
[%emt 0:00:09]} 12. Qa4 {[%emt 0:01:36]} Rc8 {[%emt 0:00:18]} 13. dxc5 {
[%emt 0:00:34]} Bxc5 {[%emt 0:00:03]} 14. Rd1 {[%emt 0:06:59]} Qb7 {[%emt 0:03:
37]} 15. Rd8+ {[%emt 0:04:24]} Kxd8 {[%emt 0:01:55]} 16. Bg5+ {[%emt 0:00:23]}
f6 {[%emt 0:03:07]} 17. Rd1+ {[%emt 0:00:40]} Ke7 {[%emt 0:00:56]} 18. Bc1 {
[%emt 0:02:28]} Rhd8 {[%emt 0:00:50]} 19. Re1 {[%emt 0:04:21]} Qd7 {[%emt 0:05:
34]} 20. Qg4 {[%emt 0:01:30]} Kf8 {[%emt 0:00:44]} 21. Bh3 {[%emt 0:01:59]} f5
{[%emt 0:05:50]} 22. Qh5 {[%emt 0:01:26]} Kg8 {[%emt 0:00:40]} 23. Bg5 {
[%emt 0:01:21]} Be7 {[%emt 0:01:43]} 24. e4 {[%emt 0:02:10]} Bxg5 {[%emt 0:01:
31]} 25. Qxg5 {[%emt 0:00:27]} Ne5 {[%emt 0:08:02]} 26. Bg2 {[%emt 0:01:24]}
Nf7 {[%emt 0:02:46]} 27. Qh5 {[%emt 0:01:35]} g6 {[%emt 0:01:03]} 28. Qf3 {
[%emt 0:00:54]} Qd3 {[%emt 0:01:32]} 29. exf5 {[%emt 0:02:02]} exf5 {[%emt 0:
03:43]} 30. Qb7 {[%emt 0:01:09]} Qd7 {[%emt 0:01:21]} 31. Qf3 {[%emt 0:05:28]}
Rc7 {[%emt 0:02:01]} 32. h4 {[%emt 0:08:32]} Qd2 {[%emt 0:03:47]} 33. Re3 {
[%emt 0:05:55]} Qd1+ {[%emt 0:06:45]} 34. Kh2 {[%emt 0:00:47]} Qxf3 {[%emt 0:
03:24]} 35. Bxf3 {[%emt 0:01:20]} Rd2 {[%emt 0:00:27]} 36. Kg2 Rxa2 37. Bd5 {
[%emt 0:04:56]} Ra3 {[%emt 0:01:33]} 38. Re8+ {[%emt 0:00:48]} Kg7 {[%emt 0:00:
06]} 39. c4 {[%emt 0:00:52]} Rc3 {[%emt 0:01:18]} 40. Ra8 {[%emt 0:01:14]} a5 {
[%emt 0:00:32]} 41. Ra6 {[%emt 0:00:37]} Ne5 {[%emt 0:13:40]} 42. Rxb6 {
[%emt 0:01:38]} a4 {[%emt 0:02:11]} 43. Ra6 {[%emt 0:01:10]} a3 {[%emt 0:00:11]
} 44. Ra8 {[%emt 0:01:18]} Nxc4 {[%emt 0:01:04]} 45. Ra6 {[%emt 0:08:40]} Ne5 {
[%emt 0:02:36]} 46. Ra4 {[%emt 0:00:00]} Nd3 {[%emt 0:00:00]} 47. Rd4 {[%emt 0:
02:13]} Ra7 {[%emt 0:00:00]} 48. Ba2 {[%emt 0:01:38]} Nc1 {[%emt 0:00:00]} 49.
Kf1 0-1

[Event "African Open (w)"]
[Site "followchess.com"]
[Date "2022.09.26"]
[Round "8"]
[White "Mudodo, Refiloe Hazel"]
[Black "Ayemou Mazan Emmanuela Esther"]
[Result "0-1"]
[ECO "C77"]
[WhiteElo "1683"]
[BlackElo "1523"]
[PlyCount "76"]
[EventDate "2022.??.??"]
[TimeControl "5400+30"]

1. e4 {[%emt 0:00:21]} e5 {[%emt 0:00:28]} 2. Nf3 {[%emt 0:00:32]} Nc6 {
[%emt 0:00:14]} 3. Bb5 {[%emt 0:00:38]} a6 {[%emt 0:00:20]} 4. Ba4 {[%emt 0:00:
27]} Nf6 {[%emt 0:00:23]} 5. Qe2 {[%emt 0:01:19]} d6 {[%emt 0:00:34]} 6. c3 {
[%emt 0:01:36]} Be7 {[%emt 0:00:24]} 7. O-O {[%emt 0:01:26]} O-O {[%emt 0:00:
20]} 8. Rd1 {[%emt 0:00:18]} Bg4 {[%emt 0:00:50]} 9. h3 {[%emt 0:03:50]} Bh5 {
[%emt 0:00:31]} 10. d4 {[%emt 0:01:14]} b5 {[%emt 0:03:22]} 11. Bb3 {[%emt 0:
01:10]} Qc8 {[%emt 0:01:35]} 12. d5 {[%emt 0:03:41]} Na5 {[%emt 0:01:21]} 13.
Bc2 {[%emt 0:01:12]} h6 {[%emt 0:01:07]} 14. a4 {[%emt 0:08:26]} Qd7 {[%emt 0:
01:46]} 15. axb5 {[%emt 0:05:58]} axb5 {[%emt 0:00:37]} 16. Bd3 {[%emt 0:04:59]
} Nb3 {[%emt 0:02:38]} 17. Rxa8 {[%emt 0:01:42]} Rxa8 {[%emt 0:00:16]} 18. g4 {
[%emt 0:02:57]} Nxg4 {[%emt 0:03:09]} 19. Bxb5 {[%emt 0:02:28]} Qc8 {[%emt 0:
00:25]} 20. Nbd2 {[%emt 0:07:04]} Nxd2 {[%emt 0:01:43]} 21. Rxd2 {[%emt 0:00:
34]} Ra1 {[%emt 0:01:21]} 22. Rd1 {[%emt 0:02:49]} Nf6 {[%emt 0:00:49]} 23. Kh2
{[%emt 0:02:13]} g5 {[%emt 0:01:45]} 24. Rg1 {[%emt 0:02:31]} g4 {[%emt 0:03:
21]} 25. Qe3 {[%emt 0:04:33]} Qf8 {[%emt 0:03:34]} 26. hxg4 {[%emt 0:03:10]}
Nxg4+ {[%emt 0:02:36]} 27. Kh3 {[%emt 0:00:54]} Qg7 {[%emt 0:00:59]} 28. Qe2 {
[%emt 0:00:32]} Bg5 {[%emt 0:10:17]} 29. Nxg5 {[%emt 0:06:03]} hxg5 {[%emt 0:
01:01]} 30. f3 {[%emt 0:04:01]} f5 {[%emt 0:02:22]} 31. Qd2 {[%emt 0:05:53]}
Qh6 {[%emt 0:04:48]} 32. Kg2 {[%emt 0:07:59]} Nf6 {[%emt 0:01:56]} 33. exf5 {
[%emt 0:03:00]} Bxf3+ {[%emt 0:08:58]} 34. Kf1 {[%emt 0:00:39]} Qh3+ {[%emt 0:
04:07]} 35. Ke1 {[%emt 0:00:15]} Qh4+ {[%emt 0:00:50]} 36. Kf1 {[%emt 0:00:57]}
Ne4 {[%emt 0:01:02]} 37. Qc2 {[%emt 0:04:34]} Rxc1+ {[%emt 0:00:47]} 38. Qxc1 {
[%emt 0:06:51]} Qf2# {[%emt 0:00:22]} 0-1

[Event "African Open (w)"]
[Site "followchess.com"]
[Date "2022.09.26"]
[Round "8"]
[White "OLORUNTOLA, Oluwatobiloba"]
[Black "Marochkina, Nadezhda Valerevna"]
[Result "1/2-1/2"]
[ECO "D35"]
[WhiteElo "1918"]
[BlackElo "1689"]
[PlyCount "98"]
[EventDate "2022.??.??"]
[TimeControl "5400+30"]

1. c4 {[%emt 0:00:05]} e6 {[%emt 0:00:18]} 2. Nc3 {[%emt 0:00:34]} d5 {[%emt 0:
00:09]} 3. d4 {[%emt 0:00:28]} Nf6 {[%emt 0:01:20]} 4. Bf4 {[%emt 0:03:08]} c6
{[%emt 0:02:26]} 5. e3 {[%emt 0:00:31]} Nbd7 {[%emt 0:06:20]} 6. Nf3 {[%emt 0:
01:12]} Be7 7. Be2 {[%emt 0:02:00]} dxc4 {[%emt 0:02:00]} 8. Bxc4 {[%emt 0:00:
32]} Nd5 {[%emt 0:00:42]} 9. Bg3 {[%emt 0:03:16]} N7b6 {[%emt 0:04:54]} 10. Bb3
{[%emt 0:06:01]} a5 {[%emt 0:05:27]} 11. a3 {[%emt 0:09:34]} a4 {[%emt 0:05:55]
} 12. Nxd5 {[%emt 0:03:37]} exd5 {[%emt 0:02:31]} 13. Ba2 {[%emt 0:10:18]} Bg4
{[%emt 0:02:28]} 14. Rc1 {[%emt 0:05:06]} O-O {[%emt 0:03:05]} 15. h3 {[%emt 0:
02:21]} Bh5 {[%emt 0:00:42]} 16. Qd3 {[%emt 0:02:38]} Bg6 {[%emt 0:02:03]} 17.
Qe2 {[%emt 0:01:22]} Nd7 {[%emt 0:04:21]} 18. O-O {[%emt 0:04:36]} h6 {[%emt 0:
00:34]} 19. Ne5 {[%emt 0:01:04]} Bh7 {[%emt 0:06:10]} 20. Nxd7 {[%emt 0:05:05]}
Qxd7 {[%emt 0:00:10]} 21. Qf3 {[%emt 0:03:01]} Qd8 {[%emt 0:04:51]} 22. Rfd1 {
[%emt 0:06:50]} Qa5 {[%emt 0:03:41]} 23. Be5 {[%emt 0:01:36]} f5 {[%emt 0:12:
02]} 24. Qg3 {[%emt 0:02:43]} Bf6 {[%emt 0:01:40]} 25. Bxf6 {[%emt 0:02:26]}
Rxf6 {[%emt 0:00:20]} 26. Qf3 {[%emt 0:02:11]} Qd8 {[%emt 0:12:59]} 27. g3 {
[%emt 0:02:58]} Qe8 {[%emt 0:03:31]} 28. Bb1 {[%emt 0:00:22]} Bg6 {[%emt 0:00:
49]} 29. Re1 {[%emt 0:03:24]} Qf7 {[%emt 0:05:05]} 30. Kh2 {[%emt 0:01:47]} Bh5
{[%emt 0:00:44]} 31. Qg2 {[%emt 0:00:42]} g5 {[%emt 0:00:57]} 32. Bd3 {[%emt 0:
02:18]} Kh8 {[%emt 0:01:42]} 33. f4 {[%emt 0:02:04]} g4 {[%emt 0:00:49]} 34. h4
{[%emt 0:02:02]} Qe7 {[%emt 0:02:18]} 35. Qd2 {[%emt 0:01:43]} Be8 {[%emt 0:01:
07]} 36. Kg2 {[%emt 0:01:21]} h5 {[%emt 0:00:14]} 37. Kf2 {[%emt 0:00:11]} Bd7
{[%emt 0:00:11]} 38. Qc3 {[%emt 0:00:52]} b5 {[%emt 0:00:38]} 39. Qc5 {[%emt 0:
01:00]} Qxc5 {[%emt 0:01:18]} 40. Rxc5 {[%emt 0:01:11]} Rff8 {[%emt 0:00:26]}
41. Ke2 {[%emt 0:06:13]} Rfb8 {[%emt 0:00:20]} 42. Ra1 {[%emt 0:00:00]} Kg7 {
[%emt 0:00:00]} 43. Kd2 {[%emt 0:00:00]} Ra7 {[%emt 0:00:00]} 44. Kc3 {[%emt 0:
00:00]} Kf7 {[%emt 0:00:00]} 45. Kb4 {[%emt 0:00:00]} Ke7 {[%emt 0:00:00]} 46.
Rc3 {[%emt 0:00:00]} Kd6 {[%emt 0:00:00]} 47. b3 axb3 48. Rxb3 Ra4+ 49. Kc3 Ra7
1/2-1/2

[Event "African Open (w)"]
[Site "followchess.com"]
[Date "2022.09.26"]
[Round "8"]
[White "Ofowino, Toritsemuwa"]
[Black "Pires, Luzia"]
[Result "0-1"]
[ECO "D02"]
[WhiteElo "1857"]
[BlackElo "1839"]
[PlyCount "160"]
[EventDate "2022.??.??"]
[TimeControl "5400+30"]

1. d4 {[%emt 0:00:05]} d5 {[%emt 0:00:40]} 2. Nf3 {[%emt 0:00:24]} Nf6 {
[%emt 0:00:41]} 3. c3 {[%emt 0:00:31]} e6 {[%emt 0:01:09]} 4. Bf4 {[%emt 0:00:
42]} Bd6 {[%emt 0:02:18]} 5. e3 {[%emt 0:00:58]} O-O {[%emt 0:00:57]} 6. Bg3 {
[%emt 0:00:16]} c6 {[%emt 0:06:53]} 7. Nbd2 {[%emt 0:00:42]} b6 {[%emt 0:02:35]
} 8. Rc1 {[%emt 0:12:19]} Ne4 {[%emt 0:04:14]} 9. Bxd6 {[%emt 0:10:07]} Qxd6 {
[%emt 0:05:04]} 10. Bd3 {[%emt 0:00:16]} Nxd2 {[%emt 0:00:32]} 11. Qxd2 {
[%emt 0:00:20]} Nd7 {[%emt 0:00:26]} 12. O-O {[%emt 0:00:32]} e5 {[%emt 0:01:
29]} 13. dxe5 {[%emt 0:00:30]} Nxe5 {[%emt 0:00:03]} 14. Nxe5 {[%emt 0:00:24]}
Qxe5 {[%emt 0:00:14]} 15. Qc2 {[%emt 0:06:02]} h6 {[%emt 0:00:54]} 16. e4 {
[%emt 0:06:10]} dxe4 {[%emt 0:01:22]} 17. Bxe4 {[%emt 0:00:06]} Bb7 {[%emt 0:
00:43]} 18. c4 {[%emt 0:03:33]} Qc5 {[%emt 0:08:59]} 19. Rfd1 {[%emt 0:03:00]}
Rad8 {[%emt 0:02:08]} 20. Bf3 {[%emt 0:07:23]} Rfe8 {[%emt 0:03:56]} 21. h3 {
[%emt 0:00:40]} a5 {[%emt 0:00:29]} 22. Rxd8 {[%emt 0:06:50]} Rxd8 {[%emt 0:00:
02]} 23. Rd1 {[%emt 0:00:21]} Rxd1+ 24. Qxd1 {[%emt 0:00:34]} Qe7 {[%emt 0:14:
25]} 25. c5 Qxc5 {[%emt 0:06:17]} 26. Qd8+ {[%emt 0:08:01]} Kh7 {[%emt 0:00:22]
} 27. Qc7 {[%emt 0:00:21]} Ba6 {[%emt 0:03:08]} 28. Qxf7 {[%emt 0:00:19]} Bd3 {
[%emt 0:01:16]} 29. Qf4 {[%emt 0:11:31]} Qc2 {[%emt 0:03:39]} 30. Qd6 {[%emt 0:
12:41]} Bg6 {[%emt 0:03:00]} 31. Bxc6 {[%emt 0:02:07]} Qc1+ {[%emt 0:00:55]}
32. Kh2 {[%emt 0:00:30]} Qxb2 {[%emt 0:00:16]} 33. Bd5 {[%emt 0:00:39]} Qxf2 {
[%emt 0:00:38]} 34. Qb8 {[%emt 0:00:21]} Bf7 {[%emt 0:01:22]} 35. Bxf7 {
[%emt 0:01:56]} Qxf7 {[%emt 0:00:03]} 36. Qxb6 {[%emt 0:00:08]} Qxa2 {[%emt 0:
00:18]} 37. Qb5 {[%emt 0:00:47]} a4 {[%emt 0:03:35]} 38. Qd3+ {[%emt 0:00:14]}
Kh8 {[%emt 0:01:36]} 39. Qd8+ {[%emt 0:00:32]} Qg8 {[%emt 0:00:10]} 40. Qa5 {
[%emt 0:00:14]} Qb3 {[%emt 0:00:23]} 41. Qa8+ {[%emt 0:00:13]} Kh7 {[%emt 0:00:
53]} 42. Qe4+ {[%emt 0:00:08]} g6 {[%emt 0:09:10]} 43. Qe7+ {[%emt 0:00:10]}
Kg8 {[%emt 0:00:31]} 44. Qe8+ {[%emt 0:00:07]} Kg7 {[%emt 0:01:56]} 45. Qd7+ {
[%emt 0:00:00]} Kf6 {[%emt 0:00:00]} 46. Qd6+ {[%emt 0:00:00]} Kf5 {[%emt 0:00:
00]} 47. g4+ {[%emt 0:00:00]} Ke4 {[%emt 0:00:00]} 48. Qxg6+ {[%emt 0:00:00]}
Kd4 {[%emt 0:00:00]} 49. Qf6+ {[%emt 0:00:00]} Kc4 {[%emt 0:00:00]} 50. Qxh6 {
[%emt 0:00:00]} a3 {[%emt 0:00:00]} 51. Qf4+ {[%emt 0:00:00]} Kb5 {[%emt 0:00:
00]} 52. Qb8+ {[%emt 0:00:00]} Ka4 {[%emt 0:00:00]} 53. Qa7+ {[%emt 0:00:00]}
Kb4 {[%emt 0:00:00]} 54. Qe7+ {[%emt 0:00:00]} Kc3 {[%emt 0:00:00]} 55. g5 {
[%emt 0:01:16]} a2 {[%emt 0:00:00]} 56. Qe3+ {[%emt 0:02:08]} Kb4 {[%emt 0:00:
00]} 57. Qb6+ {[%emt 0:00:20]} Ka3 {[%emt 0:00:00]} 58. Qa5+ {[%emt 0:00:31]}
Kb2 {[%emt 0:00:00]} 59. Qe5+ {[%emt 0:00:16]} Kc1 {[%emt 0:00:00]} 60. Qf4+ {
[%emt 0:01:34]} Kc2 {[%emt 0:00:00]} 61. Qf2+ {[%emt 0:00:31]} Kb1 {[%emt 0:00:
00]} 62. Qe1+ {[%emt 0:00:26]} Kb2 {[%emt 0:00:00]} 63. Qe5+ {[%emt 0:00:10]}
Qc3 {[%emt 0:00:00]} 64. Qb5+ {[%emt 0:00:19]} Kc1 {[%emt 0:00:00]} 65. Qf1+ {
[%emt 0:00:26]} Kc2 {[%emt 0:00:00]} 66. Qf5+ {[%emt 0:00:12]} Qd3 {[%emt 0:00:
00]} 67. Qc5+ {[%emt 0:00:25]} Kd1 {[%emt 0:01:28]} 68. Qg1+ {[%emt 0:01:14]}
Kd2 {[%emt 0:01:40]} 69. g6 {[%emt 0:01:23]} Qe2+ {[%emt 0:00:33]} 70. Kh1 {
[%emt 0:02:06]} Qe4+ {[%emt 0:01:15]} 71. Kh2 {[%emt 0:00:17]} Qe5+ {[%emt 0:
00:26]} 72. Qg3 {[%emt 0:03:17]} Qxg3+ {[%emt 0:00:32]} 73. Kxg3 {[%emt 0:00:
01]} a1=Q {[%emt 0:00:13]} 74. Kg4 {[%emt 0:00:14]} Qe5 {[%emt 0:00:56]} 75.
Kh4 {[%emt 0:00:47]} Qf5 {[%emt 0:01:04]} 76. g7 {[%emt 0:00:46]} Qh7+ {
[%emt 0:00:02]} 77. Kg4 {[%emt 0:00:30]} Qxg7+ {[%emt 0:00:02]} 78. Kh5 {
[%emt 0:00:14]} Qh7+ {[%emt 0:00:11]} 79. Kg4 {[%emt 0:00:06]} Qh6 {[%emt 0:00:
15]} 80. h4 {[%emt 0:01:15]} Ke3 {[%emt 0:00:18]} 0-1

[Event "African Open (w)"]
[Site "followchess.com"]
[Date "2022.09.26"]
[Round "8"]
[White "Van Zyl, Charlize"]
[Black "Caxita, Esperanca"]
[Result "1-0"]
[ECO "B01"]
[WhiteElo "1710"]
[BlackElo "1961"]
[PlyCount "46"]
[EventDate "2022.??.??"]
[TimeControl "5400+30"]

1. e4 {[%emt 0:00:07]} d5 {[%emt 0:00:14]} 2. exd5 {[%emt 0:00:17]} Qxd5 {
[%emt 0:00:07]} 3. Nc3 {[%emt 0:00:15]} Qd6 {[%emt 0:00:15]} 4. d4 {[%emt 0:00:
29]} Nf6 {[%emt 0:01:11]} 5. Nf3 {[%emt 0:01:51]} a6 {[%emt 0:00:41]} 6. g3 {
[%emt 0:02:15]} Bg4 {[%emt 0:01:45]} 7. h3 {[%emt 0:03:10]} Bh5 {[%emt 0:01:14]
} 8. Bg2 {[%emt 0:04:00]} Nc6 {[%emt 0:00:42]} 9. d5 {[%emt 0:03:42]} Nb4 {
[%emt 0:11:41]} 10. Bf4 {[%emt 0:01:13]} Qd8 {[%emt 0:00:30]} 11. Qe2 {[%emt 0:
05:56]} Nbxd5 {[%emt 0:08:06]} 12. O-O-O {[%emt 0:05:58]} c6 {[%emt 0:01:30]}
13. g4 {[%emt 0:12:14]} Bg6 {[%emt 0:03:57]} 14. Nxd5 {[%emt 0:04:30]} cxd5 {
[%emt 0:01:21]} 15. Ne5 {[%emt 0:00:32]} Be4 {[%emt 0:06:07]} 16. f3 {[%emt 0:
05:37]} Bg6 {[%emt 0:00:15]} 17. h4 {[%emt 0:00:04]} Rc8 {[%emt 0:01:26]} 18.
Rd2 {[%emt 0:03:06]} h6 {[%emt 0:06:14]} 19. Nxg6 {[%emt 0:00:07]} fxg6 {
[%emt 0:00:16]} 20. Qd3 {[%emt 0:08:36]} Kf7 {[%emt 0:05:47]} 21. g5 {[%emt 0:
02:22]} Nh5 {[%emt 0:02:06]} 22. Be5 {[%emt 0:02:45]} e6 {[%emt 0:01:02]} 23.
f4 {[%emt 0:01:09]} Qa5 {[%emt 0:05:50]} 1-0

[Event "African Open (w)"]
[Site "followchess.com"]
[Date "2022.09.26"]
[Round "8"]
[White "Ampaire Shakira"]
[Black "Amadasun, Rosemary"]
[Result "1-0"]
[ECO "C45"]
[WhiteElo "1657"]
[BlackElo "1807"]
[PlyCount "137"]
[EventDate "2022.??.??"]
[TimeControl "5400+30"]

1. e4 {[%emt 0:00:03]} e5 {[%emt 0:00:21]} 2. Nf3 {[%emt 0:00:13]} Nc6 {
[%emt 0:00:11]} 3. d4 {[%emt 0:01:47]} exd4 {[%emt 0:00:14]} 4. Nxd4 {[%emt 0:
00:48]} Bc5 {[%emt 0:00:30]} 5. Nxc6 {[%emt 0:00:54]} Qf6 {[%emt 0:00:17]} 6.
Qf3 {[%emt 0:06:58]} dxc6 {[%emt 0:02:17]} 7. Nc3 {[%emt 0:02:47]} Be6 {
[%emt 0:02:19]} 8. Bf4 {[%emt 0:01:49]} Bd6 {[%emt 0:04:47]} 9. Bg3 {[%emt 0:
03:00]} Qxf3 {[%emt 0:03:38]} 10. gxf3 {[%emt 0:02:25]} O-O-O {[%emt 0:00:27]}
11. O-O-O {[%emt 0:00:19]} Ne7 {[%emt 0:02:25]} 12. f4 {[%emt 0:09:01]} f5 {
[%emt 0:06:13]} 13. e5 {[%emt 0:02:44]} Bc5 14. Be2 a5 {[%emt 0:09:17]} 15. Na4
{[%emt 0:05:04]} Ba7 {[%emt 0:01:01]} 16. c4 {[%emt 0:01:21]} c5 {[%emt 0:01:
47]} 17. Rxd8+ {[%emt 0:05:08]} Rxd8 {[%emt 0:00:34]} 18. Bh4 {[%emt 0:00:06]}
Rd7 {[%emt 0:00:57]} 19. Bxe7 {[%emt 0:01:50]} Rxe7 {[%emt 0:00:05]} 20. Nc3 {
[%emt 0:00:55]} c6 {[%emt 0:02:56]} 21. b3 {[%emt 0:03:35]} Bb8 22. h4 Bc7 {
[%emt 0:08:16]} 23. Rg1 {[%emt 0:01:09]} Bd8 24. h5 Kc7 {[%emt 0:09:31]} 25.
Kd2 {[%emt 0:00:52]} Kd7 {[%emt 0:05:44]} 26. Bd3 {[%emt 0:02:18]} Rf7 {
[%emt 0:01:33]} 27. Ke3 {[%emt 0:05:57]} Ke8 {[%emt 0:00:21]} 28. Na4 {[%emt 0:
03:55]} b6 {[%emt 0:01:19]} 29. Be2 {[%emt 0:00:48]} Bd7 {[%emt 0:04:50]} 30.
Rd1 {[%emt 0:01:04]} Ke7 {[%emt 0:02:03]} 31. Bf3 {[%emt 0:00:18]} Bc7 {
[%emt 0:00:01]} 32. Rg1 {[%emt 0:01:35]} Kf8 {[%emt 0:01:01]} 33. Nc3 {[%emt 0:
01:29]} Re7 {[%emt 0:00:38]} 34. Be2 {[%emt 0:02:45]} Re6 {[%emt 0:00:48]} 35.
Bd3 {[%emt 0:01:25]} Rh6 {[%emt 0:00:40]} 36. Be2 {[%emt 0:03:18]} g6 {[%emt 0:
01:27]} 37. hxg6 {[%emt 0:01:41]} hxg6 {[%emt 0:00:02]} 38. Nb1 {[%emt 0:00:49]
} Ke7 {[%emt 0:00:46]} 39. Nd2 {[%emt 0:00:34]} Ke6 {[%emt 0:00:42]} 40. Nf3 {
[%emt 0:00:13]} b5 {[%emt 0:01:31]} 41. Ng5+ {[%emt 0:00:46]} Ke7 {[%emt 0:00:
17]} 42. a4 {[%emt 0:02:06]} bxa4 {[%emt 0:00:47]} 43. bxa4 {[%emt 0:00:12]}
Be6 {[%emt 0:02:13]} 44. Rb1 {[%emt 0:00:35]} Rh8 {[%emt 0:00:37]} 45. Rb7 {
[%emt 0:05:14]} Rc8 {[%emt 0:00:31]} 46. Ra7 {[%emt 0:01:48]} Bd7 {[%emt 0:02:
03]} 47. Rb7 {[%emt 0:02:06]} Be6 {[%emt 0:00:43]} 48. Rb1 {[%emt 0:01:52]} Rh8
{[%emt 0:01:01]} 49. Nxe6 {[%emt 0:00:56]} Kxe6 50. Rg1 Rh6 {[%emt 0:04:16]}
51. Bf3 {[%emt 0:00:44]} Ke7 {[%emt 0:02:35]} 52. Bxc6 {[%emt 0:00:22]} g5 {
[%emt 0:00:37]} 53. Bd5 {[%emt 0:00:59]} g4 {[%emt 0:00:19]} 54. Rh1 {[%emt 0:
01:38]} Rb6 {[%emt 0:01:52]} 55. Rh7+ {[%emt 0:02:35]} Kd8 {[%emt 0:00:08]} 56.
Rf7 {[%emt 0:01:51]} Rb3+ {[%emt 0:00:20]} 57. Ke2 {[%emt 0:00:10]} Rb4 {
[%emt 0:00:05]} 58. Rxf5 {[%emt 0:01:35]} Rxa4 59. Rg5 Ra2+ 60. Ke3 {[%emt 0:
01:00]} a4 {[%emt 0:04:01]} 61. Rxg4 {[%emt 0:00:30]} Ba5 {[%emt 0:01:06]} 62.
Rg8+ {[%emt 0:01:26]} Kc7 {[%emt 0:01:25]} 63. f5 {[%emt 0:02:09]} Bc3 {
[%emt 0:01:17]} 64. f4 {[%emt 0:02:49]} a3 {[%emt 0:00:20]} 65. Ra8 {[%emt 0:
00:49]} Ra1 {[%emt 0:00:17]} 66. f6 {[%emt 0:01:25]} a2 {[%emt 0:00:12]} 67. f7
{[%emt 0:01:09]} Re1+ {[%emt 0:01:49]} 68. Kd3 {[%emt 0:00:11]} a1=Q 69. Rxa1 {
[%emt 0:01:06]} 1-0